bitfinex-derivatives/quotes_ETHF0:USTF0_20250614
["timestamp","ask_amount","ask_price","bid_price","bid_amount"]
[1749877515314,0.7834,2551.8,2551.7,1.95682969]
[1749877515515,0.7834,2551.8,2551.7,0.78339]
[1749877515818,1.41157,2551.9,2551.8,0.78338]
[1749877516121,1.41157,2551.9,2551.8,1.95677126]
[1749877516615,0.78334,2552.0,2551.9,0.78332]
[1749877518717,0.78335,2551.9,2551.8,1.95673126]
[1749877519019,0.78335,2551.9,2551.8,1.17339126]
[1749877519219,0.78338,2551.8,2551.7,1.17339126]
[1749877519422,1.40528,2551.8,2551.7,1.17339126]
[1749877520418,1.40528,2551.8,2551.7,1.95680126]
[1749877520827,1.40528,2551.8,2551.7,2.63610126]
[1749877521825,0.6219,2551.8,2551.7,2.63610126]
[1749877522526,1.40528,2551.8,2551.7,1.85269126]
[1749877522827,1.40528,2551.8,2551.7,1.17339126]
[1749877523222,0.78341,2551.7,2551.6,3.2078]
[1749877523423,2.04241,2551.7,2551.6,3.2078]
[1749877524326,2.04241,2551.7,2551.6,4.3818572]
[1749877524722,2.04241,2551.7,2551.6,3.2078]
[1749877524923,2.04241,2551.7,2551.6,4.3818572]
[1749877525624,2.04241,2551.7,2551.6,3.2078]
[1749877526229,2.04241,2551.7,2551.6,4.3818572]
[1749877526528,2.04241,2551.7,2551.6,3.2078]
[1749877526729,2.04241,2551.7,2551.6,4.3818572]
[1749877527533,2.04241,2551.7,2551.6,3.2078]
[1749877529030,2.04241,2551.7,2551.6,3.99124]
[1749877529330,0.78341,2551.7,2551.6,5.1652972]
[1749877529535,0.78341,2551.7,2551.6,3.2078]
[1749877530332,0.78341,2551.7,2551.6,4.3818572]
[1749877530533,0.78341,2551.7,2551.6,5.1652972]
[1749877530932,0.78341,2551.7,2551.6,4.3818572]
[1749877531125,0.78341,2551.7,2551.6,3.2078]
[1749877531933,0.78341,2551.7,2551.6,3.99124]
[1749877532431,0.78341,2551.7,2551.6,5.1652972]
[1749877534338,0.78341,2551.7,2551.6,4.05933268]
[1749877535139,0.78341,2551.7,2551.6,3.27589268]
[1749877535431,0.78341,2551.7,2551.6,3.2078]
[1749877536941,0.78341,2551.7,2551.6,5.1652972]
[1749877538238,0.78341,2551.7,2551.6,3.99124]
[1749877538434,0.78341,2551.7,2551.6,4.05933268]
[1749877538843,0.78341,2551.7,2551.6,3.27589268]
[1749877539841,2.09031,2551.7,2551.6,3.27589268]
[1749877540336,2.09031,2551.7,2551.6,3.2078]
[1749877542439,2.09031,2551.7,2551.3,1.1740572]
[1749877542440,0.7835,2551.4,2551.3,1.1740572]
[1749877542636,0.7835,2551.4,2551.3,4.3818572]
[1749877542836,0.7835,2551.4,2551.3,3.2078]
[1749877544136,0.78356,2551.2,2551.1,1.1740572]
[1749877544439,0.78359,2551.1,2551.0,1.8587572]
[1749877544744,0.78359,2551.1,2551.0,0.6847]
[1749877544943,0.78359,2551.1,2551.0,3.8925]
[1749877546040,0.78359,2551.1,2551.0,0.6847]
[1749877550045,6.7462,2551.3,2551.0,1.4683]
[1749877550249,0.78359,2551.1,2551.0,0.6847]
[1749877561253,0.78359,2551.1,2550.8,0.6727]
[1749877561457,6.7462,2551.3,2550.8,1.3182]
[1749877561458,0.78366,2550.9,2550.8,1.3182]
[1749877562858,0.78366,2550.9,2550.8,0.6455]
[1749877563259,0.78366,2550.9,2550.8,1.42919]
[1749877563758,0.78366,2550.9,2550.8,0.6455]
[1749877564763,0.78366,2550.9,2550.8,0.71359268]
[1749877564956,0.78366,2550.9,2550.8,0.06809268]
[1749877565164,2.73506,2550.9,2550.8,0.06809268]
[1749877565871,0.78369,2550.8,2550.7,3.2078]
[1749877569053,0.78369,2550.8,2550.7,3.99152]
[1749877569257,0.78369,2550.8,2550.7,3.2078]
[1749877569858,2.15139,2550.8,2550.7,3.2078]
[1749877572660,2.15139,2550.8,2550.2,2.19934462]
[1749877572661,0.78381,2550.4,2550.3,3.2078]
[1749877574564,0.78381,2550.4,2550.3,3.99164]
[1749877574765,0.78381,2550.4,2550.3,3.2078]
[1749877575571,0.78381,2550.4,2550.3,3.99164]
[1749877576070,0.78379,2550.5,2550.4,0.7838]
[1749877576261,0.78379,2550.5,2550.4,0.6631]
[1749877578272,0.78378,2550.5,2550.4,0.6631]
[1749877578665,0.78381,2550.4,2550.3,3.2078]
[1749877578867,0.78381,2550.4,2550.3,3.8431]
[1749877579372,0.7838,2550.5,2550.3,4.62693]
[1749877580076,0.7838,2550.5,2550.4,0.06809268]
[1749877580269,0.7838,2550.5,2550.4,0.85190268]
[1749877580669,0.7838,2550.5,2550.4,0.06809268]
[1749877580968,0.7838,2550.5,2550.4,0.85190268]
[1749877581674,6.84877,2550.6,2550.5,0.78378]
[1749877581873,0.78377,2550.6,2550.5,0.78378]
[1749877582071,6.84877,2550.6,2550.5,0.78378]
[1749877582472,0.78378,2550.5,2550.4,0.85188268]
[1749877582674,6.84877,2550.6,2550.5,0.78378]
[1749877582868,0.78378,2550.5,2550.4,0.85188268]
[1749877583069,0.78374,2550.7,2550.6,0.78375]
[1749877583366,0.6649,2551.0,2550.6,3.2078]
[1749877583568,6.065,2551.2,2550.9,3.2078]
[1749877583773,6.84858,2551.2,2551.1,0.78359]
[1749877583969,6.065,2551.2,2551.1,0.78359]
[1749877584872,6.84856,2551.2,2551.1,0.78359]
[1749877585468,6.065,2551.2,2551.1,0.78359]
[1749877586875,6.84856,2551.2,2551.1,0.78359]
[1749877587579,6.065,2551.2,2551.1,0.78359]
[1749877587783,6.84856,2551.2,2551.1,0.78359]
[1749877588790,6.065,2551.2,2551.1,0.78359]
[1749877591089,0.78355,2551.3,2551.2,0.78356]
[1749877591691,0.78359,2551.2,2551.1,0.78358]
[1749877591891,0.78359,2551.2,2551.1,0.6761]
[1749877594392,0.78359,2551.2,2551.1,1.45969]
[1749877595090,0.78356,2551.3,2551.1,0.6761]
[1749877595284,0.78356,2551.2,2551.1,1.45968]
[1749877595480,0.78356,2551.2,2551.1,0.6761]
[1749877595997,0.78356,2551.2,2551.1,1.45969]
[1749877596198,0.78356,2551.2,2551.1,1.52778268]
[1749877596485,0.78355,2551.3,2551.2,0.78356]
[1749877596691,0.78355,2551.3,2551.2,3.99136]
[1749877596989,6.7309,2551.4,2551.2,3.2078]
[1749877597190,0.78353,2551.3,2551.2,3.99135]
[1749877597386,0.78353,2551.3,2551.2,3.2078]
[1749877598687,0.78353,2551.3,2551.2,3.99136]
[1749877598994,7.51442,2551.4,2551.3,0.78353]
[1749877599200,0.78353,2551.3,2551.2,3.99134]
[1749877599393,0.78353,2551.3,2551.2,3.2078]
[1749877599899,0.78356,2551.2,2551.1,0.74419268]
[1749877600198,0.78356,2551.2,2551.1,0.06809268]
[1749877600395,1.44756,2551.2,2551.1,0.06809268]
[1749877607196,1.95909,2551.0,2550.6,3.2078]
[1749877607402,0.78372,2550.7,2550.6,3.2078]
[1749877608199,2.02862,2550.7,2550.6,3.2078]
[1749877608501,0.78377,2550.6,2550.4,0.78379]
[1749877608706,2.09347,2550.6,2550.4,0.78379]
[1749877609502,1.3097,2550.6,2550.4,0.78379]
[1749877609701,2.09347,2550.6,2550.3,3.8928]
[1749877609899,0.78378,2550.5,2550.4,0.7838]
[1749877610703,1.3097,2550.6,2550.4,0.7838]
[1749877611003,0.78378,2550.5,2550.4,0.7838]
[1749877611306,2.09346,2550.6,2550.4,0.7838]
[1749877612105,2.09347,2550.6,2550.4,0.7838]
[1749877612305,1.3097,2550.6,2550.3,3.8928]
[1749877612505,0.78379,2550.5,2550.3,4.67662]
[1749877612705,0.78381,2550.4,2550.3,3.8928]
[1749877613308,0.78381,2550.4,2550.3,4.67664]
[1749877616705,0.78381,2550.4,2550.3,1.46884]
[1749877622310,1.2449,2550.7,2550.3,0.685]
[1749877622612,0.78381,2550.5,2550.4,0.7838]
[1749877623311,0.78381,2550.4,2550.3,1.46882]
[1749877623614,1.2449,2550.7,2550.3,1.46882]
[1749877623615,0.7838,2550.5,2550.4,0.7838]
[1749877624111,0.78377,2550.6,2550.3,0.685]
[1749877624312,0.78377,2550.6,2550.3,2.0382]
[1749877624512,0.78378,2550.5,2550.4,0.78379]
[1749877624811,0.78381,2550.4,2550.3,2.89010268]
[1749877625008,0.78381,2550.4,2550.3,0.75309268]
[1749877626311,0.78381,2550.4,2550.3,1.53693268]
[1749877627113,0.78381,2550.4,2550.3,0.75309268]
[1749877628414,0.78381,2550.4,2550.3,1.53693268]
[1749877629413,0.78381,2550.4,2550.3,0.75309268]
[1749877631219,0.78381,2550.4,2550.3,1.53693268]
[1749877632320,0.78381,2550.5,2550.4,0.7838]
[1749877632823,0.78381,2550.4,2550.3,1.53691268]
[1749877635523,0.78381,2550.4,2550.3,2.71040963]
[1749877637325,2.33216566,2550.8,2550.3,0.75309268]
[1749877637528,0.78369,2550.8,2550.7,3.9915]
[1749877637727,9.05596566,2551.1,2550.7,3.9915]
[1749877637928,0.78368,2550.9,2550.7,6.44354901]
[1749877639231,0.78369,2550.8,2550.7,6.44354901]
[1749877639527,0.78369,2550.8,2550.7,5.2681]
[1749877639724,0.78369,2550.8,2550.7,4.4844]
[1749877640724,0.78369,2550.8,2550.7,5.26812]
[1749877641830,0.78369,2550.8,2550.7,4.4844]
[1749877642830,0.78369,2550.8,2550.7,5.26812]
[1749877643628,0.78369,2550.8,2550.7,4.4844]
[1749877645631,0.78369,2550.8,2550.7,5.26812]
[1749877646930,0.78367,2550.9,2550.8,0.78369]
[1749877647132,0.78367,2550.9,2550.7,5.26809]
[1749877648132,0.78369,2550.8,2550.7,5.26809]
[1749877650033,0.78367,2550.9,2550.8,0.78368]
[1749877650226,6.065,2551.2,2550.8,0.78367]
[1749877650731,0.78368,2550.9,2550.7,5.2681]
[1749877651128,0.78368,2550.9,2550.8,0.78369]
[1749877651632,0.78368,2550.9,2550.7,5.2681]
[1749877651835,0.78368,2550.9,2550.8,0.78369]
[1749877652035,2.33216566,2551.4,2550.7,4.4844]
[1749877652334,0.7836,2551.1,2551.0,3.2078]
[1749877655737,2.0525,2551.1,2551.0,3.2078]
[1749877656028,2.0525,2551.1,2550.7,3.8492]
[1749877656029,0.78369,2550.8,2550.7,3.8492]
[1749877656234,0.78369,2550.8,2550.7,4.63292]
[1749877656434,0.78368,2550.9,2550.8,0.78369]
[1749877656633,1.45795,2551.0,2550.9,0.78366]
[1749877657036,1.45795,2551.0,2550.8,0.78367]
[1749877657437,0.78366,2550.9,2550.8,0.78367]
[1749877657637,0.6296,2551.2,2551.0,0.78362]
[1749877657834,0.78356,2551.2,2551.1,0.6378]
[1749877658036,2.68235,2551.3,2551.1,1.42139]
[1749877658338,0.78353,2551.3,2551.2,0.78354]
[1749877659133,6.064,2551.5,2551.4,0.7835]
[1749877659437,6.064,2551.5,2551.4,3.9913]
[1749877659643,0.78347,2551.5,2551.4,3.9913]
[1749877660032,0.7893374,2551.6,2551.4,3.9913]
[1749877660233,0.78347,2551.5,2551.4,3.9913]
[1749877660534,0.0058774,2551.6,2551.4,3.99129]
[1749877660836,0.7893474,2551.6,2551.4,3.99129]
[1749877662133,0.7893474,2551.6,2551.4,3.2078]
[1749877662337,0.7893474,2551.6,2551.5,0.78347]
[1749877662537,0.0058774,2551.6,2551.4,3.2078]
[1749877662736,0.0058774,2551.6,2551.5,0.78347]
[1749877663037,1.40963,2552.0,2551.8,0.78337]
[1749877663337,1.40963,2552.0,2551.8,3.99117]
[1749877663537,1.40964,2552.0,2551.8,3.99117]
[1749877663738,0.78335,2551.9,2551.8,3.99117]
[1749877664040,0.78335,2551.9,2551.8,3.2078]
[1749877664535,0.78335,2551.9,2551.8,3.99118]
[1749877664939,0.78335,2551.9,2551.8,3.2078]
[1749877666139,0.78341,2551.7,2551.6,0.0058774]
[1749877666738,1.41001,2551.7,2551.6,0.0058774]
[1749877671145,1.41001,2551.7,2551.6,0.07397008]
[1749877672237,0.78356,2551.2,2551.1,3.2078]
[1749877672438,0.78356,2551.2,2551.1,3.99139]
[1749877672640,0.78356,2551.2,2551.1,3.2078]
[1749877672845,0.78356,2551.3,2551.1,3.99139]
[1749877673143,0.78352,2551.4,2551.2,0.78356]
[1749877673648,0.78353,2551.3,2551.2,0.78356]
[1749877673839,0.78353,2551.3,2551.1,3.2078]
[1749877674036,0.78356,2551.2,2551.1,3.2078]
[1749877674443,0.78356,2551.2,2551.1,3.99139]
[1749877676039,0.78354,2551.3,2551.2,0.78356]
[1749877676445,0.78351,2551.4,2551.3,0.78352]
[1749877677444,0.78349,2551.5,2551.3,0.78351]
[1749877677747,0.7835,2551.4,2551.3,0.78351]
[1749877679446,0.7835,2551.4,2551.2,0.78354]
[1749877679848,0.7835,2551.4,2551.3,0.6599]
[1749877681155,0.7835,2551.4,2551.3,3.8677]
[1749877681453,0.7835,2551.4,2551.3,4.65123]
[1749877681642,0.7835,2551.4,2551.3,3.8677]
[1749877682455,0.7835,2551.4,2551.3,3.2078]
[1749877684355,0.7835,2551.4,2551.3,3.27589268]
[1749877687155,1.424,2551.4,2551.3,3.27589268]
[1749877688357,1.424,2551.4,2551.3,0.06809268]
[1749877690253,0.78359,2551.1,2551.0,3.2078]
[1749877691852,8.8371,2551.1,2550.7,3.2078]
[1749877692054,0.78369,2550.8,2550.7,3.2078]
[1749877697767,6.068,2550.9,2550.5,2.12768]
[1749877697962,0.78373,2550.7,2550.6,3.2078]
[1749877698468,1.95939,2550.6,2549.5,5.99075065]
[1749877698764,0.78424,2549.0,2548.9,0.6585]
[1749877698963,0.78424,2549.0,2548.9,4.56523636]
[1749877699360,1.78332548,2549.0,2548.9,4.56523636]
[1749877699559,0.78424,2549.0,2548.9,4.56523636]
[1749877699761,1.81636366,2549.0,2548.9,4.56523636]
[1749877700466,0.78424,2549.0,2548.9,4.56523636]
[1749877700661,3.2078,2549.1,2548.6,1.2766]
[1749877700866,1.03056591,2549.0,2548.6,3.90673636]
[1749877701067,3.2078,2549.1,2548.6,3.90673636]
[1749877701264,1.03057024,2549.0,2548.6,3.90673636]
[1749877701468,4.4681,2549.1,2548.6,3.90673636]
[1749877701864,4.4681,2549.1,2548.6,4.69108636]
[1749877702063,4.4681,2549.1,2548.6,3.90673636]
[1749877702264,4.4681,2549.1,2548.6,4.69108636]
[1749877703273,4.4681,2549.1,2548.6,3.90673636]
[1749877703770,1.2603,2549.1,2548.6,3.90673636]
[1749877704069,1.2603,2549.1,2548.6,4.69108636]
[1749877704265,1.2603,2549.1,2548.7,0.78433]
[1749877704466,6.75853037,2549.4,2548.7,3.90673636]
[1749877704673,6.361,2549.4,2548.8,4.5439]
[1749877704872,6.361,2549.4,2549.1,0.78419]
[1749877705075,3.2078,2549.5,2549.4,0.78412]
[1749877705377,3.2078,2549.8,2549.3,6.363]
[1749877705570,3.2078,2549.8,2549.6,0.78405]
[1749877706676,3.2078,2549.8,2549.6,0.78404]
[1749877706977,3.2078,2550.1,2550.0,0.78391]
[1749877707368,3.2078,2550.1,2549.9,0.78394]
[1749877707569,3.2078,2550.1,2550.0,0.78393]
[1749877707778,0.0058774,2550.3,2550.2,0.78387]
[1749877707975,0.0058774,2550.3,2549.8,1.2703]
[1749877708377,0.0058774,2550.3,2549.9,0.6518]
[1749877708678,0.0058774,2550.3,2550.2,0.78387]
[1749877709679,0.0058774,2550.3,2550.2,4.69060636]
[1749877711574,3.2078,2550.7,2550.2,4.69060636]
[1749877711780,3.2078,2550.7,2550.6,0.78375]
[1749877712581,3.99145,2551.0,2550.7,0.78369]
[1749877712884,0.0058774,2550.8,2550.7,0.85178268]
[1749877714882,0.0058774,2550.8,2550.7,0.78369]
[1749877716286,0.0058774,2550.8,2550.7,4.69042636]
[1749877716786,0.0058774,2550.8,2550.7,5.99572636]
[1749877717679,3.2078,2551.0,2550.9,0.78366]
[1749877717879,3.2078,2551.0,2550.9,4.69039636]
[1749877719784,0.7894474,2551.2,2551.1,0.78359]
[1749877719988,0.0058774,2551.2,2551.1,0.78359]
[1749877720190,0.7894374,2551.2,2551.1,0.78359]
[1749877720889,3.9972374,2551.2,2551.1,0.78359]
[1749877722189,3.2136774,2551.2,2551.1,0.78359]
[1749877727787,3.9972374,2551.2,2551.1,0.78359]
[1749877728096,3.2136774,2551.2,2551.1,0.78359]
[1749877730097,0.78362,2551.1,2551.0,0.78362]
[1749877730297,3.9972674,2551.2,2551.1,0.78359]
[1749877730994,3.9972674,2551.2,2551.1,0.85168268]
[1749877731398,5.03906695,2551.2,2551.1,0.85168268]
[1749877731695,5.03906695,2551.2,2551.1,0.06809268]
[1749877732893,5.03906695,2551.2,2551.1,0.85168268]
[1749877733296,5.03906695,2551.2,2551.1,0.06809268]
[1749877733992,5.03906695,2551.2,2551.1,0.85168268]
[1749877739002,5.03906695,2551.2,2551.1,0.06809268]
[1749877739899,6.33126695,2551.2,2551.1,0.06809268]
[1749877741002,6.33126695,2551.2,2551.1,0.85168268]
[1749877743006,6.33126695,2551.2,2551.1,0.06809268]
[1749877743501,8.66939483,2551.2,2551.1,0.06809268]
[1749877743800,6.33126695,2551.2,2551.1,0.06809268]
[1749877744206,11.33126695,2551.2,2551.1,0.06809268]
[1749877744506,0.78378,2550.5,2550.3,1.42392]
[1749877744706,1.04179955,2550.4,2550.3,1.42394]
[1749877744906,1.04179955,2550.4,2550.3,5.33067636]
[1749877745300,1.04895106,2550.5,2550.4,0.78381]
[1749877745505,1.04895125,2550.5,2550.4,0.78381]
[1749877745799,1.83273125,2550.5,2550.4,4.69054636]
[1749877746410,1.04895125,2550.5,2550.4,4.69054636]
[1749877746918,1.83273125,2550.5,2550.4,0.78381]
[1749877747209,1.04895125,2550.5,2550.4,0.78381]
[1749877749207,1.04895125,2550.5,2550.4,4.69054636]
[1749877749406,1.04895125,2550.5,2550.4,6.05734636]
[1749877751706,1.04895125,2550.5,2550.4,2.15061]
[1749877751913,1.04895125,2550.5,2550.4,6.05734636]
[1749877752613,1.04895125,2550.5,2550.4,4.69054636]
[1749877753712,1.04895125,2550.5,2550.3,0.6401]
[1749877754008,1.83276125,2550.4,2550.3,4.54683636]
[1749877754505,1.04895125,2550.4,2550.3,5.33067636]
[1749877754714,1.04895125,2550.4,2550.3,6.69777636]
[1749877755913,1.83276125,2550.4,2550.3,6.69777636]
[1749877756914,1.04895125,2550.4,2550.3,6.69777636]
[1749877759415,1.04895125,2550.4,2550.3,6.76586904]
[1749877760110,1.04895125,2550.4,2550.3,5.39876904]
[1749877760614,1.83276125,2550.4,2550.3,5.39876904]
[1749877764415,1.83276125,2550.4,2550.3,1.49203268]
[1749877764616,1.83276125,2550.4,2550.3,0.70819268]
[1749877765419,1.83276125,2550.4,2550.3,1.49203268]
[1749877767022,1.04895125,2550.4,2550.3,1.49203268]
[1749877767620,1.04895125,2550.4,2550.3,5.39876904]
[1749877768121,0.7838,2550.5,2550.4,0.78381]
[1749877768319,1.83227198,2550.5,2550.4,0.78381]
[1749877769326,1.04847198,2550.5,2550.4,7.89834636]
[1749877769621,0.78378,2550.6,2550.5,0.78378]
[1749877769814,1.8326481,2550.6,2550.5,4.69051636]
[1749877771516,1.8326481,2550.6,2550.3,1.49201268]
[1749877771517,1.0488681,2550.6,2550.3,1.49201268]
[1749877771719,0.78381,2550.4,2550.3,31.87101268]
[1749877772024,1.8326781,2550.4,2550.3,6.99419268]
[1749877772318,1.8326781,2550.4,2550.3,7.77803268]
[1749877772522,5.0404781,2550.4,2550.3,0.06809268]
[1749877773218,6.3329781,2550.4,2550.3,0.06809268]
[1749877773615,8.67754959,2550.4,2550.3,0.06809268]
[1749877775430,6.3329781,2550.4,2550.3,0.06809268]
[1749877775630,8.67754959,2550.4,2550.3,0.06809268]
[1749877776528,6.3329781,2550.4,2550.3,0.06809268]
[1749877776922,8.67754959,2550.4,2550.3,0.06809268]
[1749877777529,6.3329781,2550.4,2550.3,0.06809268]
[1749877779326,6.3329781,2550.4,2550.2,0.0058774]
[1749877779327,0.78384,2550.3,2550.2,0.0058774]
[1749877779524,0.78384,2550.3,2549.7,1.9243]
[1749877779525,7.29801959,2550.3,2549.7,6.9691]
[1749877779728,3.2078,2550.0,2549.8,0.78399]
[1749877779931,1.0488681,2549.9,2549.8,0.78399]
[1749877780230,1.6884681,2549.9,2549.8,4.69072636]
[1749877781127,2.4724581,2549.9,2549.8,4.69072636]
[1749877781431,0.78399,2549.8,2549.7,2.1338]
[1749877781631,1.8328581,2549.8,2549.7,6.04053636]
[1749877781928,1.0488681,2549.8,2549.7,6.04053636]
[1749877782832,0.78402,2549.7,2549.6,0.0058774]
[1749877783026,5.0406881,2549.7,2549.6,0.0058774]
[1749877787043,5.0406881,2549.7,2549.6,0.6317774]
[1749877789838,5.0406881,2549.7,2549.6,0.69987008]
[1749877790240,5.03792156,2549.7,2549.6,0.69987008]
[1749877791444,5.03792156,2549.7,2549.6,1.48392008]
[1749877792642,5.03792156,2549.7,2549.6,5.39065644]
[1749877792944,1.04610156,2549.7,2549.6,5.39065644]
[1749877793542,1.83012156,2549.7,2549.6,5.39065644]
[1749877794848,1.04610156,2549.7,2549.6,5.39065644]
[1749877795435,1.04610156,2549.7,2549.6,7.41785644]
[1749877797139,0.0058774,2549.9,2549.8,0.78399]
[1749877797344,1.8356779,2549.9,2549.8,0.78399]
[1749877797645,1.0517179,2549.9,2549.8,4.69072636]
[1749877798141,1.8356779,2549.9,2549.8,3.90673636]
[1749877798446,1.8356779,2549.9,2549.8,4.69072636]
[1749877799039,1.0517179,2549.9,2549.8,4.69072636]
[1749877800446,1.8356779,2549.9,2549.8,4.69072636]
[1749877800743,1.0517179,2549.9,2549.8,4.69072636]
[1749877804344,0.0058774,2549.9,2549.8,4.69072636]
[1749877805250,3.12833149,2550.6,2550.5,0.78378]
[1749877805450,1.8310929,2550.6,2550.5,0.78378]
[1749877805746,0.7838,2550.5,2550.4,0.7838]
[1749877805937,1.8311329,2550.5,2550.4,0.7838]
[1749877806341,1.0473329,2550.5,2550.4,0.7838]
[1749877807152,1.0473329,2550.5,2550.4,4.69053636]
[1749877807346,1.04678008,2550.5,2550.4,4.69054636]
[1749877808748,3.2136774,2550.7,2550.6,0.78375]
[1749877808951,4.25995792,2550.7,2550.6,0.78375]
[1749877810349,1.05215792,2550.7,2550.6,0.78375]
[1749877810546,1.05215792,2550.7,2550.6,4.69048636]
[1749877811050,0.78377,2550.6,2550.5,6.269]
[1749877811247,1.67238052,2550.6,2550.5,0.78378]
[1749877811450,2.45613052,2550.6,2550.5,0.78378]
[1749877811855,0.78381,2550.5,2550.4,0.78379]
[1749877812155,3.87079052,2550.5,2550.4,0.78379]
[1749877812360,3.87079052,2550.5,2550.4,3.99159]
[1749877812551,3.08698052,2550.5,2550.4,3.99159]
[1749877812748,2.0407,2550.5,2550.4,3.99159]
[1749877812951,0.6656,2550.5,2550.4,3.99159]
[1749877815959,0.6261,2550.6,2550.5,0.78378]
[1749877816154,1.67048084,2550.6,2550.5,0.78378]
[1749877816355,1.67048084,2550.6,2550.5,4.69051636]
[1749877817061,2.45423084,2550.6,2550.5,4.69051636]
[1749877817261,3.73903084,2550.6,2550.5,4.69051636]
[1749877817464,2.95528084,2550.6,2550.5,4.69051636]
[1749877817663,3.73903084,2550.6,2550.5,4.69051636]
[1749877818762,0.78379,2550.5,2550.4,0.78378]
[1749877818962,3.11297084,2550.5,2550.4,0.78378]
[1749877820768,2.32918084,2550.5,2550.4,0.78378]
[1749877820966,3.11296084,2550.5,2550.4,0.78378]
[1749877823765,2.32918084,2550.5,2550.4,0.78378]
[1749877824768,3.11296084,2550.5,2550.4,0.78378]
[1749877829474,3.11296084,2550.5,2550.2,0.662]
[1749877829475,0.78381,2550.4,2550.3,0.78381]
[1749877829676,1.82819084,2550.4,2550.3,0.78381]
[1749877833279,0.78381,2550.4,2550.3,0.78381]
[1749877834478,0.78381,2550.4,2550.3,0.85190268]
[1749877838778,0.78381,2550.4,2550.3,0.06809268]
[1749877838978,0.78381,2550.4,2550.3,0.85193268]
[1749877840882,0.78381,2550.4,2550.3,0.06809268]
[1749877841082,0.78381,2550.4,2550.3,0.85193268]
[1749877843579,0.78381,2550.4,2550.3,0.06809268]
[1749877847381,3.99161,2550.4,2550.3,0.06809268]
[1749877856094,5.33251,2550.4,2550.3,0.06809268]
[1749877861394,0.78396,2549.9,2549.8,1.44578]
[1749877861594,0.78396,2549.9,2549.8,5.35251636]
[1749877861899,0.78396,2549.9,2549.8,4.56853636]
[1749877862998,0.78396,2549.9,2549.8,5.35252636]
[1749877864403,1.938,2550.3,2549.8,4.56853636]
[1749877864704,0.78391,2550.1,2550.0,0.78393]
[1749877865001,0.78394,2550.0,2549.9,0.78394]
[1749877866105,0.78394,2550.0,2549.9,4.69067636]
[1749877867712,0.78391,2550.1,2550.0,0.7839]
[1749877868711,6.176,2550.5,2550.0,7.11453636]
[1749877868898,6.177,2550.6,2550.1,0.6747]
[1749877869103,0.7838,2550.5,2550.4,0.7838]
[1749877870112,0.78382,2550.4,2550.3,0.78382]
[1749877870408,3.2136774,2550.7,2550.3,0.78382]
[1749877870613,3.9974174,2550.7,2550.6,0.78375]
[1749877870815,0.7896174,2550.7,2550.6,0.78375]
[1749877871813,0.78376,2550.6,2550.5,0.78375]
[1749877872315,0.78378,2550.5,2550.4,3.99159]
[1749877872615,0.0058774,2550.7,2550.4,3.2078]
[1749877873216,0.78376,2550.6,2550.5,0.78377]
[1749877874015,0.0058774,2550.7,2550.4,3.99159]
[1749877874016,0.78378,2550.5,2550.4,3.99159]
[1749877875911,0.78378,2550.5,2550.4,0.78379]
[1749877876112,0.78381,2550.4,2550.3,2.08881]
[1749877876310,0.78381,2550.4,2550.3,4.69057636]
[1749877878921,0.7838,2550.5,2550.4,0.7838]
[1749877881119,0.78377,2550.6,2550.5,0.78376]
[1749877881721,0.78377,2550.6,2550.5,4.69049636]
[1749877882340,1.83073214,2550.6,2550.5,4.69049636]
[1749877882831,1.83073214,2550.6,2550.5,3.90673636]
[1749877883231,1.83073214,2550.6,2550.5,4.69051636]
[1749877883933,0.78378,2550.5,2550.4,0.7838]
[1749877884134,1.83074214,2550.5,2550.4,0.7838]
[1749877885038,0.78381,2550.4,2550.3,1.50561268]
[1749877885335,1.83077214,2550.4,2550.3,4.62852904]
[1749877885534,3.79507214,2550.4,2550.3,3.97482904]
[1749877889239,3.79507214,2550.4,2550.3,0.06809268]
[1749877892239,6.14083552,2550.4,2550.3,0.06809268]
[1749877892445,16.49902552,2550.4,2549.6,0.0058774]
[1749877892638,0.78402,2549.7,2549.6,0.0058774]
[1749877892839,1.83098214,2549.7,2549.6,0.0058774]
[1749877897845,1.82968254,2549.7,2549.6,0.0058774]
[1749877900444,1.82968254,2549.7,2549.6,0.7899274]
[1749877900843,1.82968254,2549.7,2549.6,0.0058774]
[1749877902345,1.82968254,2549.7,2549.6,0.6923774]
[1749877904243,1.82968254,2549.7,2549.6,0.0058774]
[1749877905239,1.82968254,2549.7,2549.6,0.6360774]
[1749877908853,1.82968254,2549.7,2549.6,1.4201274]
[1749877909452,1.82968254,2549.7,2549.6,0.6360774]
[1749877910451,1.82968254,2549.7,2549.6,1.48822008]
[1749877910657,1.83018471,2549.7,2549.6,0.70417008]
[1749877911256,1.83018471,2549.7,2549.6,1.48822008]
[1749877911660,1.83018471,2549.7,2549.6,0.70417008]
[1749877920267,1.83018471,2549.7,2549.6,5.39495644]
[1749877920869,0.78402,2549.7,2549.6,5.39495644]
[1749877921064,1.83302856,2549.7,2549.6,5.39495644]
[1749877921767,1.83302856,2549.7,2549.6,4.61090644]
[1749877922168,4.17382685,2549.7,2549.6,4.61090644]
[1749877926779,4.17382685,2549.7,2549.6,0.70417008]
[1749877928079,1.83302856,2549.7,2549.6,0.70417008]
[1749877928476,1.04900856,2549.7,2549.6,5.39495644]
[1749877928870,1.05056911,2549.7,2549.6,5.39495644]
[1749877929075,1.05056911,2549.7,2549.6,13.60275644]
[1749877929275,1.05056911,2549.7,2549.6,14.85465644]
[1749877931181,1.05056911,2549.7,2549.6,20.97765644]
[1749877931573,1.05056911,2549.7,2549.6,14.85465644]
[1749877931775,1.05056911,2549.7,2549.6,20.97765644]
[1749877931976,1.05056911,2549.7,2549.6,14.85465644]
[1749877932180,1.05056911,2549.7,2549.6,20.97765644]
[1749877933503,1.05056911,2549.7,2549.6,15.97765644]
[1749877935187,1.83458911,2549.7,2549.6,14.72575644]
[1749877935387,1.05056911,2549.7,2549.6,14.72575644]
[1749877935589,1.83458911,2549.7,2549.6,8.60275644]
[1749877936388,1.05056911,2549.7,2549.6,8.60275644]
[1749877937385,1.05056911,2549.7,2549.6,9.95305644]
[1749877938087,0.7839,2550.2,2549.7,1.96005]